[Event "Titled Tuesday Blitz October 11 Early 2022"]
[White "Saucey, Michel"]
[Black "Azadaliyev, Jahandar"]
[WhiteFideId "601845"]
[BlackFideId "13425811"]
[WhiteElo "2253"]
[BlackElo "2204"]
[Result "0-1"]
[Round "10"]
[TimeControl "180+1"]
[Date "2022.10.12"]
[WhiteClock "0:00:02"]
[BlackClock "0:00:48"]

1. d4 {[%clk 0:03:00]}  Nf6 {[%clk 0:02:56]} 2. Nf3 {[%clk 0:02:58]}  e6 {[%clk 0:02:55]} 3. c4 {[%clk 0:02:59]}  b6 {[%clk 0:02:56]} 4. g3 {[%clk 0:02:58]}  Ba6 {[%clk 0:02:57]} 5. b3 {[%clk 0:02:58]}  Bb4+ {[%clk 0:02:56]} 6. Bd2 {[%clk 0:02:58]}  Be7 {[%clk 0:02:56]} 7. Nc3 {[%clk 0:02:57]}  Bb7 {[%clk 0:02:56]} 8. Qc2 {[%clk 0:02:55]}  d5 {[%clk 0:02:55]} 9. cxd5 {[%clk 0:02:53]}  Nxd5 {[%clk 0:02:56]} 10. Bg2 {[%clk 0:02:51]}  O-O {[%clk 0:02:56]} 11. O-O {[%clk 0:02:49]}  Nc6 {[%clk 0:02:55]} 12. a3 {[%clk 0:02:48]}  Bf6 {[%clk 0:02:52]} 13. e3 {[%clk 0:02:44]}  Nce7 {[%clk 0:02:50]} 14. Rac1 {[%clk 0:02:17]}  Rc8 {[%clk 0:02:48]} 15. b4 {[%clk 0:01:59]}  c5 {[%clk 0:02:46]} 16. dxc5 {[%clk 0:01:59]}  bxc5 {[%clk 0:02:47]} 17. b5 {[%clk 0:01:59]}  Nxc3 {[%clk 0:02:44]} 18. Bxc3 {[%clk 0:01:58]}  Bxc3 {[%clk 0:02:45]} 19. Qxc3 {[%clk 0:01:58]}  Nd5 {[%clk 0:02:46]} 20. Qb2 {[%clk 0:01:50]}  c4 {[%clk 0:02:42]} 21. Nd4 {[%clk 0:01:42]}  c3 {[%clk 0:02:41]} 22. Qb3 {[%clk 0:01:42]}  Qf6 {[%clk 0:02:36]} 23. Rc2 {[%clk 0:01:32]}  Rfd8 {[%clk 0:02:33]} 24. Rfc1 {[%clk 0:01:30]}  h5 {[%clk 0:02:29]} 25. h3 {[%clk 0:01:27]}  Qe5 {[%clk 0:02:28]} 26. Nf3 {[%clk 0:01:22]}  Qf6 {[%clk 0:02:25]} 27. Nd4 {[%clk 0:01:21]}  Qg6 {[%clk 0:02:23]} 28. Nc6 {[%clk 0:01:09]}  Bxc6 {[%clk 0:02:13]} 29. bxc6 {[%clk 0:01:08]}  Rxc6 {[%clk 0:02:14]} 30. e4 {[%clk 0:01:08]}  Nf6 {[%clk 0:02:08]} 31. e5 {[%clk 0:01:02]}  Nd5 {[%clk 0:02:05]} 32. Bxd5 {[%clk 0:01:01]}  Rxd5 {[%clk 0:02:06]} 33. Rxc3 {[%clk 0:01:00]}  Rxc3 {[%clk 0:02:03]} 34. Qxc3 {[%clk 0:01:00]}  Qe4 {[%clk 0:02:03]} 35. Re1 {[%clk 0:00:54]}  Qf5 {[%clk 0:02:01]} 36. Re3 {[%clk 0:00:49]}  Qxh3 {[%clk 0:02:00]} 37. Qc8+ {[%clk 0:00:44]}  Kh7 {[%clk 0:01:59]} 38. Qc2+ {[%clk 0:00:43]}  g6 {[%clk 0:02:00]} 39. Rf3 {[%clk 0:00:35]}  Kg7 {[%clk 0:01:58]} 40. Qe2 {[%clk 0:00:34]}  Qg4 {[%clk 0:01:56]} 41. Kg2 {[%clk 0:00:30]}  Ra5 {[%clk 0:01:48]} 42. Qe3 {[%clk 0:00:22]}  Rd5 {[%clk 0:01:42]} 43. Rf4 {[%clk 0:00:20]}  Qd1 {[%clk 0:01:41]} 44. Rf3 {[%clk 0:00:17]}  Rd7 {[%clk 0:01:40]} 45. Qf4 {[%clk 0:00:16]}  Qd5 {[%clk 0:01:39]} 46. Qf6+ {[%clk 0:00:16]}  Kg8 {[%clk 0:01:38]} 47. Kh2 {[%clk 0:00:09]}  Qc4 {[%clk 0:01:30]} 48. Rf4 {[%clk 0:00:09]}  Qc7 {[%clk 0:01:27]} 49. g4 {[%clk 0:00:03]}  Rd1 {[%clk 0:01:19]} 50. gxh5 {[%clk 0:00:02]}  Qb7 {[%clk 0:01:19]} 51. Rf3 {[%clk 0:00:02]}  gxh5 {[%clk 0:00:46]} 52. Rg3+ {[%clk 0:00:01]}  Kf8 {[%clk 0:00:46]} 53. Qh8+ {[%clk 0:00:01]}  Ke7 {[%clk 0:00:47]} 54. Qf6+ {[%clk 0:00:01]}  Kd7 {[%clk 0:00:46]} 55. Qxf7+ {[%clk 0:00:02]}  Kc6 {[%clk 0:00:47]} 56. Qxb7+ {[%clk 0:00:01]}  Kxb7 {[%clk 0:00:48]} 57. Rg7+ {[%clk 0:00:02]}  Kc6 {[%clk 0:00:48]} 58. Rh7 {[%clk 0:00:02]}  Rd2 {[%clk 0:00:48]} 59. Kg3 {[%clk 0:00:02]}  Rd3+ {[%clk 0:00:48]} 60. f3 {[%clk 0:00:02]}  Rxa3 {[%clk 0:00:48]} 61. Rxh5 {[%clk 0:00:02]}  Kd5 {[%clk 0:00:48]} 0-1


[Site "https://www.chess.com"]

[Event "Titled Tuesday Blitz October 11 Early 2022"]
[White "Shandrygin, Nikita"]
[Black "Boraso, Alessio"]
[WhiteFideId "24198668"]
[BlackFideId "848077"]
[WhiteElo "2323"]
[BlackElo "2286"]
[Result "1-0"]
[Round "10"]
[TimeControl "180+1"]
[Date "2022.10.12"]
[WhiteClock "0:00:11"]
[BlackClock "0:00:02"]

1. e4 {[%clk 0:03:00]}  e6 {[%clk 0:02:58]} 2. d4 {[%clk 0:03:00]}  d5 {[%clk 0:02:58]} 3. Nd2 {[%clk 0:03:01]}  Nf6 {[%clk 0:02:56]} 4. e5 {[%clk 0:03:01]}  Nfd7 {[%clk 0:02:57]} 5. f4 {[%clk 0:03:02]}  c5 {[%clk 0:02:57]} 6. c3 {[%clk 0:03:03]}  Nc6 {[%clk 0:02:57]} 7. Ndf3 {[%clk 0:03:03]}  Qb6 {[%clk 0:02:40]} 8. h4 {[%clk 0:03:03]}  cxd4 {[%clk 0:02:31]} 9. cxd4 {[%clk 0:03:04]}  Bb4+ {[%clk 0:02:30]} 10. Kf2 {[%clk 0:03:04]}  h5 {[%clk 0:02:21]} 11. g3 {[%clk 0:02:59]}  a5 {[%clk 0:02:03]} 12. Kg2 {[%clk 0:02:59]}  a4 {[%clk 0:02:03]} 13. a3 {[%clk 0:02:48]}  Be7 {[%clk 0:02:02]} 14. f5 {[%clk 0:02:39]}  exf5 {[%clk 0:01:58]} 15. Nh3 {[%clk 0:02:40]}  Nf8 {[%clk 0:01:58]} 16. Nf4 {[%clk 0:02:40]}  Be6 {[%clk 0:01:49]} 17. Bd3 {[%clk 0:02:40]}  g6 {[%clk 0:01:48]} 18. Bc2 {[%clk 0:02:34]}  Qa6 {[%clk 0:01:46]} 19. Bd2 {[%clk 0:02:16]}  b5 {[%clk 0:01:45]} 20. b3 {[%clk 0:01:52]}  Nd7 {[%clk 0:01:41]} 21. Bd3 {[%clk 0:01:42]}  Qb6 {[%clk 0:01:24]} 22. b4 {[%clk 0:01:01]}  Rc8 {[%clk 0:01:03]} 23. Rc1 {[%clk 0:01:00]}  Qb7 {[%clk 0:00:58]} 24. Qe2 {[%clk 0:00:51]}  Rb8 {[%clk 0:00:38]} 25. Be3 {[%clk 0:00:21]}  Na7 {[%clk 0:00:36]} 26. Ng5 {[%clk 0:00:13]}  Bxg5 {[%clk 0:00:32]} 27. hxg5 {[%clk 0:00:14]}  Ke7 {[%clk 0:00:25]} 28. g4 {[%clk 0:00:07]}  hxg4 {[%clk 0:00:20]} 29. Rh6 {[%clk 0:00:07]}  Rxh6 {[%clk 0:00:09]} 30. gxh6 {[%clk 0:00:08]}  Rh8 {[%clk 0:00:08]} 31. Rh1 {[%clk 0:00:08]}  Nc6 {[%clk 0:00:08]} 32. h7 {[%clk 0:00:07]}  Nf8 {[%clk 0:00:07]} 33. Qf2 {[%clk 0:00:07]}  Ke8 {[%clk 0:00:05]} 34. Qh4 {[%clk 0:00:07]}  Ne7 {[%clk 0:00:05]} 35. Qf6 {[%clk 0:00:04]}  Rxh7 {[%clk 0:00:04]} 36. Rxh7 {[%clk 0:00:04]}  Nxh7 {[%clk 0:00:05]} 37. Qg7 {[%clk 0:00:03]}  Nf8 {[%clk 0:00:05]} 38. Nxe6 {[%clk 0:00:03]}  Nxe6 {[%clk 0:00:04]} 39. Qh8+ {[%clk 0:00:04]}  Nf8 {[%clk 0:00:05]} 40. Bh6 {[%clk 0:00:04]}  Kd7 {[%clk 0:00:02]} 41. Qxf8 {[%clk 0:00:04]}  Qc8 {[%clk 0:00:02]} 42. Qxf7 {[%clk 0:00:05]}  Qc3 {[%clk 0:00:03]} 43. e6+ {[%clk 0:00:06]}  Kd6 {[%clk 0:00:03]} 44. Bf4+ {[%clk 0:00:06]}  Kc6 {[%clk 0:00:03]} 45. Qxe7 {[%clk 0:00:06]}  Qb2+ {[%clk 0:00:02]} 46. Kg3 {[%clk 0:00:07]}  Qxa3 {[%clk 0:00:03]} 47. Qd6+ {[%clk 0:00:07]}  Kb7 {[%clk 0:00:03]} 48. Qc7+ {[%clk 0:00:08]}  Ka6 {[%clk 0:00:03]} 49. Qb8 {[%clk 0:00:09]}  Qxd3+ {[%clk 0:00:03]} 50. Kh4 {[%clk 0:00:08]}  Qh3+ {[%clk 0:00:03]} 51. Kg5 {[%clk 0:00:08]}  Qh5+ {[%clk 0:00:04]} 52. Kf6 {[%clk 0:00:08]}  Qh4+ {[%clk 0:00:04]} 53. Bg5 {[%clk 0:00:09]}  Qe1 {[%clk 0:00:03]} 54. Qa8+ {[%clk 0:00:08]}  Kb6 {[%clk 0:00:03]} 55. e7 {[%clk 0:00:09]}  g3 {[%clk 0:00:02]} 56. e8=Q {[%clk 0:00:10]}  Qxe8 {[%clk 0:00:02]} 57. Qxe8 {[%clk 0:00:11]}  g2 {[%clk 0:00:02]} 58. Qe1 {[%clk 0:00:11]}  f4 {[%clk 0:00:02]} 59. Bxf4 {[%clk 0:00:11]}  g5 {[%clk 0:00:02]} 60. Be3 {[%clk 0:00:11]} 1-0


[Site "https://www.chess.com"]

[Event "Titled Tuesday Blitz October 11 Early 2022"]
[White "Skibbe, Willi"]
[Black "Przybylski, Wojciech"]
[WhiteFideId "4682190"]
[BlackFideId "1117599"]
[WhiteElo "2338"]
[BlackElo "2221"]
[Result "0-1"]
[Round "10"]
[TimeControl "180+1"]
[Date "2022.10.12"]
[WhiteClock "0:00:04"]
[BlackClock "0:00:05"]

1. Nf3 {[%clk 0:03:00]}  Nf6 {[%clk 0:02:59]} 2. c4 {[%clk 0:03:00]}  c6 {[%clk 0:02:58]} 3. d4 {[%clk 0:02:57]}  d5 {[%clk 0:02:58]} 4. Nbd2 {[%clk 0:02:57]}  Bf5 {[%clk 0:02:56]} 5. Nh4 {[%clk 0:02:55]}  Be6 {[%clk 0:02:55]} 6. e3 {[%clk 0:02:52]}  g5 {[%clk 0:02:52]} 7. Nhf3 {[%clk 0:02:50]}  Rg8 {[%clk 0:02:49]} 8. Qb3 {[%clk 0:02:40]}  Qc7 {[%clk 0:02:46]} 9. Bd3 {[%clk 0:02:35]}  Nbd7 {[%clk 0:02:45]} 10. e4 {[%clk 0:02:02]}  g4 {[%clk 0:02:39]} 11. Nh4 {[%clk 0:02:01]}  g3 {[%clk 0:02:25]} 12. hxg3 {[%clk 0:01:57]}  Rxg3 {[%clk 0:02:22]} 13. fxg3 {[%clk 0:01:49]}  Qxg3+ {[%clk 0:02:20]} 14. Kd1 {[%clk 0:01:50]}  Ng4 {[%clk 0:02:01]} 15. Rh3 {[%clk 0:01:11]}  Nf2+ {[%clk 0:01:45]} 16. Kc2 {[%clk 0:01:07]}  Bxh3 {[%clk 0:01:40]} 17. gxh3 {[%clk 0:01:06]}  Qxh4 {[%clk 0:01:31]} 18. exd5 {[%clk 0:01:05]}  Qxh3 {[%clk 0:01:22]} 19. dxc6 {[%clk 0:01:00]}  bxc6 {[%clk 0:01:19]} 20. Ne4 {[%clk 0:00:49]}  Nxd3 {[%clk 0:00:56]} 21. Qxd3 {[%clk 0:00:50]}  Qxd3+ {[%clk 0:00:51]} 22. Kxd3 {[%clk 0:00:50]}  O-O-O {[%clk 0:00:50]} 23. Be3 {[%clk 0:00:43]}  e5 {[%clk 0:00:45]} 24. Kc3 {[%clk 0:00:41]}  exd4+ {[%clk 0:00:35]} 25. Bxd4 {[%clk 0:00:42]}  c5 {[%clk 0:00:36]} 26. Be3 {[%clk 0:00:34]}  Bg7+ {[%clk 0:00:35]} 27. Kc2 {[%clk 0:00:32]}  Ne5 {[%clk 0:00:34]} 28. Rg1 {[%clk 0:00:23]}  Nxc4 {[%clk 0:00:31]} 29. Bxc5 {[%clk 0:00:22]}  Bd4 {[%clk 0:00:29]} 30. Bxd4 {[%clk 0:00:18]}  Rxd4 {[%clk 0:00:29]} 31. Rg4 {[%clk 0:00:15]}  Ne3+ {[%clk 0:00:29]} 32. Kc3 {[%clk 0:00:15]}  Rc4+ {[%clk 0:00:20]} 33. Kd3 {[%clk 0:00:14]}  Nxg4 {[%clk 0:00:19]} 34. Kxc4 {[%clk 0:00:14]}  Kd7 {[%clk 0:00:17]} 35. Ng5 {[%clk 0:00:14]}  h5 {[%clk 0:00:04]} 36. Nxf7 {[%clk 0:00:13]}  Ke6 {[%clk 0:00:04]} 37. Ng5+ {[%clk 0:00:12]}  Kf5 {[%clk 0:00:04]} 38. Nh3 {[%clk 0:00:13]}  Ne5+ {[%clk 0:00:04]} 39. Kd5 {[%clk 0:00:11]}  Kg4 {[%clk 0:00:04]} 40. Nf2+ {[%clk 0:00:07]}  Kf3 {[%clk 0:00:04]} 41. Nh3 {[%clk 0:00:06]}  Ng6 {[%clk 0:00:04]} 42. b4 {[%clk 0:00:04]}  Nf4+ {[%clk 0:00:04]} 43. Nxf4 {[%clk 0:00:03]}  Kxf4 {[%clk 0:00:04]} 44. b5 {[%clk 0:00:04]}  h4 {[%clk 0:00:05]} 45. a4 {[%clk 0:00:05]}  h3 {[%clk 0:00:05]} 46. a5 {[%clk 0:00:04]}  h2 {[%clk 0:00:06]} 47. b6 {[%clk 0:00:03]}  h1=Q+ {[%clk 0:00:05]} 48. Kd6 {[%clk 0:00:03]}  axb6 {[%clk 0:00:06]} 49. axb6 {[%clk 0:00:03]}  Qb7 {[%clk 0:00:05]} 50. Kc5 {[%clk 0:00:04]}  Ke5 {[%clk 0:00:05]} 0-1


[Site "https://www.chess.com"]

[Event "Titled Tuesday Blitz October 11 Early 2022"]
[White "Slaby, Jerzy"]
[Black "Dwilewicz, Katarzyna"]
[WhiteFideId "1121405"]
[BlackFideId "1148486"]
[WhiteElo "2533"]
[BlackElo "2023"]
[Result "1-0"]
[Round "10"]
[TimeControl "180+1"]
[Date "2022.10.12"]
[WhiteClock "0:00:11"]
[BlackClock "0:00:02"]

1. e4 {[%clk 0:01:51]}  c5 {[%clk 0:03:00]} 2. Nc3 {[%clk 0:01:51]}  d6 {[%clk 0:02:59]} 3. Nf3 {[%clk 0:01:51]}  Nf6 {[%clk 0:02:59]} 4. d4 {[%clk 0:01:51]}  cxd4 {[%clk 0:02:59]} 5. Qxd4 {[%clk 0:01:52]}  a6 {[%clk 0:02:56]} 6. Bg5 {[%clk 0:01:49]}  Nc6 {[%clk 0:02:56]} 7. Qd2 {[%clk 0:01:47]}  e6 {[%clk 0:02:53]} 8. O-O-O {[%clk 0:01:43]}  Be7 {[%clk 0:02:53]} 9. h4 {[%clk 0:01:42]}  b5 {[%clk 0:02:43]} 10. Bd3 {[%clk 0:01:36]}  Bb7 {[%clk 0:02:42]} 11. Kb1 {[%clk 0:01:31]}  Rc8 {[%clk 0:02:38]} 12. Ne2 {[%clk 0:01:25]}  h6 {[%clk 0:02:38]} 13. Bxf6 {[%clk 0:01:19]}  Bxf6 {[%clk 0:02:38]} 14. g4 {[%clk 0:01:19]}  Be7 {[%clk 0:02:28]} 15. g5 {[%clk 0:01:14]}  h5 {[%clk 0:02:26]} 16. g6 {[%clk 0:01:11]}  Bf6 {[%clk 0:02:15]} 17. Nf4 {[%clk 0:01:06]}  Ne5 {[%clk 0:02:09]} 18. gxf7+ {[%clk 0:01:03]}  Kxf7 {[%clk 0:02:08]} 19. Qe2 {[%clk 0:00:50]}  Qa5 {[%clk 0:01:52]} 20. Ng5+ {[%clk 0:00:44]}  Bxg5 {[%clk 0:01:46]} 21. hxg5 {[%clk 0:00:45]}  g6 {[%clk 0:01:46]} 22. Nxh5 {[%clk 0:00:38]}  gxh5 {[%clk 0:01:42]} 23. Rxh5 {[%clk 0:00:39]}  Qd8 {[%clk 0:01:33]} 24. Rdh1 {[%clk 0:00:36]}  Rxh5 {[%clk 0:00:35]} 25. Qxh5+ {[%clk 0:00:37]}  Ke7 {[%clk 0:00:35]} 26. f4 {[%clk 0:00:33]}  Qg8 {[%clk 0:00:24]} 27. fxe5 {[%clk 0:00:31]}  dxe5 {[%clk 0:00:25]} 28. g6 {[%clk 0:00:30]}  Qg7 {[%clk 0:00:23]} 29. Qg5+ {[%clk 0:00:29]}  Kd6 {[%clk 0:00:22]} 30. Rh7 {[%clk 0:00:29]}  Qf8 {[%clk 0:00:15]} 31. Qd2 {[%clk 0:00:23]}  Kc6 {[%clk 0:00:09]} 32. a4 {[%clk 0:00:19]}  Kb6 {[%clk 0:00:08]} 33. g7 {[%clk 0:00:16]}  Qg8 {[%clk 0:00:06]} 34. Qf2+ {[%clk 0:00:16]}  Ka5 {[%clk 0:00:06]} 35. Qd2+ {[%clk 0:00:15]}  Kb6 {[%clk 0:00:06]} 36. Qf2+ {[%clk 0:00:13]}  Ka5 {[%clk 0:00:06]} 37. Qh4 {[%clk 0:00:12]}  Rc7 {[%clk 0:00:06]} 38. axb5 {[%clk 0:00:11]}  axb5 {[%clk 0:00:06]} 39. Qe1+ {[%clk 0:00:11]}  Kb6 {[%clk 0:00:06]} 40. Qf2+ {[%clk 0:00:11]}  Ka5 {[%clk 0:00:06]} 41. Rh8 {[%clk 0:00:11]}  Qxg7 {[%clk 0:00:05]} 42. Qd2+ {[%clk 0:00:12]}  Kb6 {[%clk 0:00:05]} 43. Rh1 {[%clk 0:00:11]}  Rd7 {[%clk 0:00:04]} 44. Qe3+ {[%clk 0:00:11]}  Kc7 {[%clk 0:00:04]} 45. Qc5+ {[%clk 0:00:11]}  Bc6 {[%clk 0:00:04]} 46. Bxb5 {[%clk 0:00:12]}  Rd6 {[%clk 0:00:04]} 47. Qa7+ {[%clk 0:00:12]}  Bb7 {[%clk 0:00:03]} 48. Rc1 {[%clk 0:00:10]}  Qe7 {[%clk 0:00:02]} 49. Qc5+ {[%clk 0:00:10]}  Bc6 {[%clk 0:00:02]} 50. Bxc6 {[%clk 0:00:10]}  Rxc6 {[%clk 0:00:02]} 51. Qxe7+ {[%clk 0:00:11]} 1-0


[Site "https://www.chess.com"]

[Event "Titled Tuesday Blitz October 11 Early 2022"]
[White "Smietanska, Wiktoria"]
[Black "Chernomordik, Pavel"]
[WhiteFideId "21869359"]
[BlackFideId "2804530"]
[WhiteElo "1854"]
[BlackElo "2217"]
[Result "1/2-1/2"]
[Round "10"]
[TimeControl "180+1"]
[Date "2022.10.12"]
[WhiteClock "0:00:43"]
[BlackClock "0:00:34"]

1. c4 {[%clk 0:02:49]}  g6 {[%clk 0:02:58]} 2. Nc3 {[%clk 0:02:47]}  Bg7 {[%clk 0:02:58]} 3. g3 {[%clk 0:02:46]}  e5 {[%clk 0:02:56]} 4. Bg2 {[%clk 0:02:46]}  Nc6 {[%clk 0:02:55]} 5. e3 {[%clk 0:02:44]}  d6 {[%clk 0:02:55]} 6. Nge2 {[%clk 0:02:43]}  Be6 {[%clk 0:02:54]} 7. b3 {[%clk 0:02:39]}  Qd7 {[%clk 0:02:53]} 8. d4 {[%clk 0:02:35]}  Bh3 {[%clk 0:02:50]} 9. O-O {[%clk 0:02:34]}  Bxg2 {[%clk 0:02:49]} 10. Kxg2 {[%clk 0:02:35]}  Nge7 {[%clk 0:02:44]} 11. Bb2 {[%clk 0:02:32]}  O-O {[%clk 0:02:43]} 12. Qd2 {[%clk 0:02:31]}  exd4 {[%clk 0:02:39]} 13. exd4 {[%clk 0:02:31]}  Nf5 {[%clk 0:02:38]} 14. f4 {[%clk 0:02:21]}  Ncxd4 {[%clk 0:02:30]} 15. Nxd4 {[%clk 0:02:20]}  Bxd4 {[%clk 0:02:28]} 16. Nd5 {[%clk 0:02:18]}  Bxb2 {[%clk 0:02:03]} 17. Qxb2 {[%clk 0:02:18]}  f6 {[%clk 0:02:03]} 18. Nxf6+ {[%clk 0:02:12]}  Rxf6 {[%clk 0:02:02]} 19. Qxf6 {[%clk 0:02:11]}  Ne3+ {[%clk 0:02:02]} 20. Kg1 {[%clk 0:02:05]}  Nxf1 {[%clk 0:01:58]} 21. Rxf1 {[%clk 0:02:04]}  Re8 {[%clk 0:01:54]} 22. Qd4 {[%clk 0:01:58]}  b6 {[%clk 0:01:53]} 23. Qd5+ {[%clk 0:01:55]}  Qe6 {[%clk 0:01:47]} 24. Re1 {[%clk 0:01:46]}  Qxd5 {[%clk 0:01:36]} 25. Rxe8+ {[%clk 0:01:46]}  Kf7 {[%clk 0:01:36]} 26. cxd5 {[%clk 0:01:46]}  Kxe8 {[%clk 0:01:36]} 27. Kf2 {[%clk 0:01:46]}  Kd7 {[%clk 0:01:36]} 28. Ke3 {[%clk 0:01:47]}  c5 {[%clk 0:01:34]} 29. a4 {[%clk 0:01:33]}  a6 {[%clk 0:01:33]} 30. Ke4 {[%clk 0:01:27]}  b5 {[%clk 0:01:31]} 31. axb5 {[%clk 0:01:25]}  axb5 {[%clk 0:01:31]} 32. g4 {[%clk 0:01:18]}  Ke7 {[%clk 0:01:27]} 33. h3 {[%clk 0:01:15]}  h6 {[%clk 0:01:18]} 34. Kd3 {[%clk 0:01:10]}  Kf6 {[%clk 0:01:16]} 35. Ke4 {[%clk 0:01:06]}  g5 {[%clk 0:01:02]} 36. f5 {[%clk 0:01:03]}  b4 {[%clk 0:00:48]} 37. Kd3 {[%clk 0:00:58]}  h5 {[%clk 0:00:46]} 38. Ke4 {[%clk 0:00:53]}  h4 {[%clk 0:00:42]} 39. Kd3 {[%clk 0:00:51]}  Ke5 {[%clk 0:00:42]} 40. Kc4 {[%clk 0:00:51]}  Kf6 {[%clk 0:00:35]} 41. Kd3 {[%clk 0:00:47]}  Ke5 {[%clk 0:00:34]} 42. Kc4 {[%clk 0:00:43]} 1/2-1/2


[Site "https://www.chess.com"]

[Event "Titled Tuesday Blitz October 11 Early 2022"]
[White "Sohier, Julien"]
[Black "Jovic, Stanoje"]
[WhiteFideId "645346"]
[BlackFideId "905020"]
[WhiteElo "2209"]
[BlackElo "2238"]
[Result "0-1"]
[Round "10"]
[TimeControl "180+1"]
[Date "2022.10.12"]
[WhiteClock "0:01:12"]
[BlackClock "0:01:18"]

1. e4 {[%clk 0:03:00]}  c6 {[%clk 0:02:59]} 2. Nf3 {[%clk 0:03:00]}  d5 {[%clk 0:02:59]} 3. d3 {[%clk 0:03:00]}  dxe4 {[%clk 0:02:58]} 4. dxe4 {[%clk 0:03:01]}  Qxd1+ {[%clk 0:02:58]} 5. Kxd1 {[%clk 0:03:01]}  Bg4 {[%clk 0:02:58]} 6. Be2 {[%clk 0:03:02]}  Bxf3 {[%clk 0:02:58]} 7. Bxf3 {[%clk 0:03:02]}  h5 {[%clk 0:02:58]} 8. a4 {[%clk 0:03:01]}  g6 {[%clk 0:02:56]} 9. a5 {[%clk 0:03:00]}  Bh6 {[%clk 0:02:55]} 10. Bxh6 {[%clk 0:02:54]}  Nxh6 {[%clk 0:02:51]} 11. Nd2 {[%clk 0:02:54]}  Ng4 {[%clk 0:02:50]} 12. Ke2 {[%clk 0:02:51]}  Nd7 {[%clk 0:02:48]} 13. Nc4 {[%clk 0:02:47]}  Nge5 {[%clk 0:02:45]} 14. Nxe5 {[%clk 0:02:46]}  Nxe5 {[%clk 0:02:45]} 15. b3 {[%clk 0:02:44]}  O-O-O {[%clk 0:02:43]} 16. Rhd1 {[%clk 0:02:40]}  Rxd1 {[%clk 0:02:41]} 17. Rxd1 {[%clk 0:02:40]}  Rd8 {[%clk 0:02:41]} 18. Rxd8+ {[%clk 0:02:39]}  Kxd8 {[%clk 0:02:41]} 19. Ke3 {[%clk 0:02:40]}  c5 {[%clk 0:02:34]} 20. Be2 {[%clk 0:02:39]}  Nc6 {[%clk 0:02:26]} 21. a6 {[%clk 0:02:37]}  b6 {[%clk 0:02:23]} 22. c3 {[%clk 0:02:28]}  Kc7 {[%clk 0:02:18]} 23. Kf4 {[%clk 0:02:24]}  f6 {[%clk 0:02:13]} 24. g4 {[%clk 0:02:15]}  hxg4 {[%clk 0:02:04]} 25. Kxg4 {[%clk 0:02:14]}  Ne5+ {[%clk 0:02:01]} 26. Kg3 {[%clk 0:02:14]}  Kc6 {[%clk 0:02:00]} 27. f4 {[%clk 0:02:12]}  Nf7 {[%clk 0:01:57]} 28. c4 {[%clk 0:02:07]}  e5 {[%clk 0:01:50]} 29. f5 {[%clk 0:01:58]}  g5 {[%clk 0:01:44]} 30. h4 {[%clk 0:01:56]}  gxh4+ {[%clk 0:01:43]} 31. Kxh4 {[%clk 0:01:57]}  Kd6 {[%clk 0:01:43]} 32. Kh5 {[%clk 0:01:53]}  Ke7 {[%clk 0:01:41]} 33. Kg6 {[%clk 0:01:52]}  Nd8 {[%clk 0:01:40]} 34. Kh5 {[%clk 0:01:19]}  Nc6 {[%clk 0:01:40]} 35. Kg4 {[%clk 0:01:19]}  Nb8 {[%clk 0:01:40]} 36. Kf3 {[%clk 0:01:15]}  Nxa6 {[%clk 0:01:40]} 37. Ke3 {[%clk 0:01:16]}  Kf8 {[%clk 0:01:33]} 38. Bh5 {[%clk 0:01:15]}  Nb4 {[%clk 0:01:25]} 39. Kd2 {[%clk 0:01:14]}  Nc6 {[%clk 0:01:23]} 40. Kc3 {[%clk 0:01:14]}  a5 {[%clk 0:01:21]} 41. Bg6 {[%clk 0:01:13]}  Kg7 {[%clk 0:01:19]} 42. Be8 {[%clk 0:01:13]}  Nd4 {[%clk 0:01:18]} 43. Bd7 {[%clk 0:01:13]}  Kh6 {[%clk 0:01:18]} 44. Bc8 {[%clk 0:01:12]}  Kg5 {[%clk 0:01:18]} 45. Bb7 {[%clk 0:01:12]}  Kf4 {[%clk 0:01:18]} 0-1


[Site "https://www.chess.com"]

[Event "Titled Tuesday Blitz October 11 Early 2022"]
[White "Srihari L R"]
[Black "Rosen, Eric"]
[WhiteFideId "46617116"]
[BlackFideId "2032562"]
[WhiteElo "2336"]
[BlackElo "2362"]
[Result "1-0"]
[Round "10"]
[TimeControl "180+1"]
[Date "2022.10.11"]
[WhiteClock "0:00:02"]
[BlackClock "0:00:02"]

1. d4 {[%clk 0:03:00]}  d5 {[%clk 0:02:59]} 2. c4 {[%clk 0:02:55]}  e6 {[%clk 0:02:59]} 3. Nc3 {[%clk 0:02:54]}  Nf6 {[%clk 0:03:00]} 4. Bg5 {[%clk 0:02:50]}  Be7 {[%clk 0:02:58]} 5. e3 {[%clk 0:02:47]}  O-O {[%clk 0:02:58]} 6. Qc2 {[%clk 0:02:46]}  a6 {[%clk 0:02:52]} 7. c5 {[%clk 0:02:22]}  b6 {[%clk 0:02:43]} 8. cxb6 {[%clk 0:02:22]}  cxb6 {[%clk 0:02:44]} 9. Bd3 {[%clk 0:02:20]}  Bb7 {[%clk 0:02:44]} 10. Bxf6 {[%clk 0:02:19]}  Bxf6 {[%clk 0:02:42]} 11. Bxh7+ {[%clk 0:02:17]}  Kh8 {[%clk 0:02:43]} 12. Bd3 {[%clk 0:02:17]}  Nd7 {[%clk 0:02:40]} 13. Nf3 {[%clk 0:02:17]}  Rc8 {[%clk 0:02:35]} 14. O-O {[%clk 0:02:15]}  g6 {[%clk 0:02:35]} 15. Qe2 {[%clk 0:02:13]}  b5 {[%clk 0:02:29]} 16. a3 {[%clk 0:02:11]}  Kg7 {[%clk 0:02:28]} 17. e4 {[%clk 0:02:09]}  dxe4 {[%clk 0:02:27]} 18. Bxe4 {[%clk 0:02:09]}  Bxe4 {[%clk 0:02:21]} 19. Nxe4 {[%clk 0:02:08]}  Nb6 {[%clk 0:02:20]} 20. Rfd1 {[%clk 0:02:02]}  Qe7 {[%clk 0:02:02]} 21. Nc5 {[%clk 0:01:57]}  Ra8 {[%clk 0:01:32]} 22. Rac1 {[%clk 0:01:33]}  Rfd8 {[%clk 0:01:32]} 23. Ne5 {[%clk 0:01:26]}  Rd5 {[%clk 0:01:27]} 24. f4 {[%clk 0:01:07]}  Rc8 {[%clk 0:01:12]} 25. Nxa6 {[%clk 0:00:41]}  Rxd4 {[%clk 0:00:45]} 26. Qxb5 {[%clk 0:00:24]}  Rxd1+ {[%clk 0:00:40]} 27. Rxd1 {[%clk 0:00:24]}  Nd5 {[%clk 0:00:39]} 28. Nc6 {[%clk 0:00:18]}  Qe8 {[%clk 0:00:22]} 29. Na7 {[%clk 0:00:15]}  Qxb5 {[%clk 0:00:17]} 30. Nxb5 {[%clk 0:00:16]}  Rc2 {[%clk 0:00:17]} 31. Nb4 {[%clk 0:00:13]}  Nxb4 {[%clk 0:00:17]} 32. axb4 {[%clk 0:00:13]}  Rxb2 {[%clk 0:00:17]} 33. Nd6 {[%clk 0:00:13]}  Rxb4 {[%clk 0:00:16]} 34. Ne8+ {[%clk 0:00:14]}  Kh6 {[%clk 0:00:14]} 35. Nxf6 {[%clk 0:00:15]}  Rxf4 {[%clk 0:00:15]} 36. Rf1 {[%clk 0:00:13]}  Ra4 {[%clk 0:00:10]} 37. Nd7 {[%clk 0:00:12]}  f5 {[%clk 0:00:09]} 38. Nc5 {[%clk 0:00:12]}  Rc4 {[%clk 0:00:04]} 39. Nxe6 {[%clk 0:00:12]}  Rc6 {[%clk 0:00:04]} 40. Nd4 {[%clk 0:00:11]}  Rc4 {[%clk 0:00:04]} 41. Nf3 {[%clk 0:00:11]}  g5 {[%clk 0:00:04]} 42. Ne5 {[%clk 0:00:10]}  Re4 {[%clk 0:00:01]} 43. Rxf5 {[%clk 0:00:09]}  Re1+ {[%clk 0:00:01]} 44. Kf2 {[%clk 0:00:09]}  Ra1 {[%clk 0:00:02]} 45. g4 {[%clk 0:00:08]}  Ra2+ {[%clk 0:00:02]} 46. Kg3 {[%clk 0:00:08]}  Ra3+ {[%clk 0:00:01]} 47. Nf3 {[%clk 0:00:09]}  Ra1 {[%clk 0:00:02]} 48. Rxg5 {[%clk 0:00:08]}  Rd1 {[%clk 0:00:03]} 49. Rh5+ {[%clk 0:00:08]}  Kg6 {[%clk 0:00:03]} 50. Rf5 {[%clk 0:00:07]}  Rd3 {[%clk 0:00:03]} 51. h4 {[%clk 0:00:07]}  Ra3 {[%clk 0:00:04]} 52. h5+ {[%clk 0:00:08]}  Kh6 {[%clk 0:00:04]} 53. Kh4 {[%clk 0:00:08]}  Ra1 {[%clk 0:00:05]} 54. g5+ {[%clk 0:00:08]}  Kg7 {[%clk 0:00:06]} 55. Kg4 {[%clk 0:00:07]}  Rh1 {[%clk 0:00:07]} 56. h6+ {[%clk 0:00:05]}  Kh7 {[%clk 0:00:07]} 57. Rf7+ {[%clk 0:00:06]}  Kg8 {[%clk 0:00:06]} 58. Rg7+ {[%clk 0:00:06]}  Kh8 {[%clk 0:00:05]} 59. Ra7 {[%clk 0:00:05]}  Rb1 {[%clk 0:00:02]} 60. Nh4 {[%clk 0:00:04]}  Rb4+ {[%clk 0:00:02]} 61. Kh5 {[%clk 0:00:04]}  Kg8 {[%clk 0:00:02]} 62. Rg7+ {[%clk 0:00:02]}  Kf8 {[%clk 0:00:02]} 63. Ng6+ {[%clk 0:00:02]}  Ke8 {[%clk 0:00:02]} 64. h7 {[%clk 0:00:02]} 1-0


[Site "https://www.chess.com"]